fUSD/lending_fUSD_20240222
["ID","MTS","AMOUNT","RATE_DAILY","PERIOD"]
[314894407,1708625468074,-500.0,0.00033013,4]
[314894408,1708625468086,-500.0,0.00033013,4]
[314894409,1708625468097,-690.36,0.00033013,4]
[314894410,1708625468107,-396.72786808,0.00033013,4]
[314894411,1708625468117,-582.2,0.00033013,4]
[314894412,1708625468127,-808.11,0.00033013,4]
[314894413,1708625468137,-623.27,0.00033013,4]
[314894414,1708625468146,-383.11619595,0.00033013,4]
[314894415,1708625468158,-955.15,0.00033013,4]
[314894416,1708625468168,-500.0,0.00033013,4]
[314894417,1708625468179,-500.0,0.00033013,4]
[314894418,1708625468188,-500.0,0.00033013,4]
[314894419,1708625468199,-151.0,0.00033013,7]
[314894420,1708625468210,-151.0,0.00033013,7]
[314894421,1708625468220,-151.0,0.00033013,7]
[314894422,1708625468229,-500.0,0.00033013,4]
[314894423,1708625468239,-191.648954,0.00033013,7]
[314894424,1708625468248,-500.0,0.00033013,2]
[314894425,1708625468258,-500.0,0.00033013,4]
[314894426,1708625468268,-520.41,0.00033013,4]
[314894427,1708625468279,-500.0,0.00033013,4]
[314894428,1708625468290,-642.76,0.00033013,4]
[314894429,1708625468300,-500.0,0.00033013,4]
[314894430,1708625468309,-500.0,0.00033013,4]
[314894431,1708625468320,-500.0,0.00033013,4]
[314894432,1708625468331,-500.0,0.00033013,4]
[314894433,1708625468341,-500.0,0.00033013,4]
[314894434,1708625468351,-814.72,0.00033013,4]
[314894435,1708625468361,-763.81,0.00033013,4]
[314894436,1708625468371,-500.0,0.00033013,4]
[314894437,1708625468381,-500.0,0.00033013,4]
[314894438,1708625468390,-500.0,0.00033013,4]
[314894439,1708625468402,-920.28,0.00033013,4]
[314894440,1708625468412,-595.79,0.00033013,4]
[314894441,1708625468422,-641.32280696,0.00033013,4]
[314894442,1708625468433,-500.0,0.00033013,4]
[314894443,1708625468443,-500.0,0.00033013,4]
[314894444,1708625468453,-151.0,0.00033013,7]
[314894445,1708625468463,-151.0,0.00033013,7]
[314894446,1708625468473,-616.74,0.00033013,4]
[314894447,1708625468484,-693.29,0.00033013,4]
[314894448,1708625468494,-704.13,0.00033013,4]
[314894449,1708625468504,-500.0,0.00033013,4]
[314894450,1708625468514,-970.8,0.00033013,4]
[314894451,1708625468524,-523.23,0.00033013,4]
[314894452,1708625468534,-500.0,0.00033013,4]
[314894453,1708625468544,-500.0,0.00033013,4]
[314894454,1708625468553,-552.1,0.00033013,4]
[314894455,1708625468562,-569.97,0.00033013,4]
[314894456,1708625468572,-500.0,0.00033013,4]
[314894457,1708625468582,-500.0,0.00033013,4]
[314894458,1708625468592,-546.34,0.00033013,4]
[314894459,1708625468602,-500.0,0.00033013,4]
[314894460,1708625468611,-500.0,0.00033013,4]
[314894461,1708625468621,-272.392206,0.00033013,7]
[314894462,1708625468631,-272.392206,0.00033013,7]
[314894463,1708625468641,-500.0,0.00033013,14]
[314894464,1708625468651,-597.14,0.00033013,4]
[314894465,1708625468660,-272.392206,0.00033013,7]
[314894466,1708625468670,-272.392206,0.00033013,7]
[314894467,1708625468679,-936.39,0.00033013,4]
[314894468,1708625468689,-500.0,0.00033013,4]
[314894469,1708625468698,-500.0,0.00033013,4]
[314894470,1708625468708,-500.0,0.00033013,4]
[314894471,1708625468717,-1000.0,0.00033013,7]
[314894472,1708625468726,-1322.67,0.00033013,4]
[314894473,1708625468737,-500.0,0.00033013,4]
[314894474,1708625468746,-500.0,0.00033013,4]
[314894475,1708625468756,-513.58,0.00033013,4]
[314894476,1708625468766,-587.40959512,0.00033013,4]
[314894477,1708625468776,-500.0,0.00033013,4]
[314894478,1708625468786,-1000.0,0.00033013,7]
[314894479,1708625468796,-500.0,0.00033013,4]
[314894480,1708625468806,-652.66,0.00033013,4]
[314894481,1708625468816,-500.0,0.00033013,4]
[314894482,1708625468826,-500.0,0.00033013,4]
[314894483,1708625468837,-217.6,0.00033013,7]
[314894484,1708625468846,-500.0,0.00033013,4]
[314894485,1708625468856,-905.48,0.00033013,4]
[314894486,1708625468867,-648.05617928,0.00033013,4]
[314894487,1708625468878,-622.1563646,0.00033013,4]
[314894488,1708625468887,-500.0,0.00033013,4]
[314894489,1708625468897,-266.06918727,0.00033013,2]
[314894490,1708625468908,-500.0,0.00033013,4]
[314894491,1708625468918,-902.91,0.00033013,4]
[314894492,1708625468928,-500.0,0.00033013,4]
[314894493,1708625468938,-500.0,0.00033013,4]
[314894494,1708625468948,-500.0,0.00033013,4]
[314894495,1708625468958,-500.0,0.00033013,4]
[314894496,1708625468967,-500.0,0.00033013,4]
[314894497,1708625468977,-500.0,0.00033013,4]
[314894498,1708625468987,-500.0,0.00033013,4]
[314894499,1708625468997,-577.69,0.00033013,4]
[314894500,1708625469006,-500.0,0.00033013,4]
[314894501,1708625469016,-151.0,0.00033013,7]
[314894502,1708625469025,-1566.96,0.00033013,4]
[314894503,1708625469034,-151.0,0.00033013,7]
[314894504,1708625469044,-500.0,0.00033013,4]
[314894505,1708625469054,-500.0,0.00033013,4]
[314894506,1708625469063,-500.0,0.00033013,4]
[314894507,1708625469073,-885.89,0.00033013,4]
[314894508,1708625469082,-567.92,0.00033013,4]
[314894509,1708625469092,-500.0,0.00033013,4]
[314894510,1708625469102,-642.58,0.00033013,4]
[314894511,1708625469111,-851.67,0.00033013,4]
[314894512,1708625469121,-500.0,0.00033013,4]
[314894513,1708625469134,-500.0,0.00033013,2]
[314894514,1708625469144,-500.0,0.00033013,4]
[314894515,1708625469154,-500.0,0.00033013,4]
[314894516,1708625469164,-583.46,0.00033013,4]
[314894517,1708625469176,-572.75,0.00033013,4]
[314894518,1708625469187,-1131.89,0.00033013,4]
[314894519,1708625469198,-500.0,0.00033013,4]
[314894520,1708625469210,-500.0,0.00033013,4]
[314894521,1708625469220,-500.0,0.00033013,4]
[314894522,1708625469230,-500.0,0.00033013,4]
[314894523,1708625469241,-500.0,0.00033013,4]
[314894524,1708625469252,-500.0,0.00033013,4]
[314894525,1708625469262,-568.65,0.00033013,4]
[314894526,1708625469273,-500.0,0.00033013,4]
[314894527,1708625469285,-500.0,0.00033013,4]
[314894528,1708625469295,-500.0,0.00033013,4]
[314894529,1708625469305,-500.0,0.00033013,4]
[314894530,1708625469315,-1313.43,0.00033013,4]
[314894531,1708625469325,-500.0,0.00033013,4]
[314894532,1708625469335,-3828.9,0.00033013,4]
[314894533,1708625469345,-500.0,0.00033013,4]
[314894534,1708625469356,-500.0,0.00033013,4]
[314894535,1708625469366,-1312.47,0.00033013,4]
[314894536,1708625469376,-500.0,0.00033013,4]
[314894537,1708625469386,-500.0,0.00033013,4]
[314894538,1708625469398,-500.0,0.00033013,4]
[314894539,1708625469408,-500.0,0.00033013,4]
[314894540,1708625469418,-525.39627369,0.00033013,4]
[314894541,1708625469428,-637.56,0.00033013,4]
[314894542,1708625469438,-500.0,0.00033013,4]
[314894543,1708625469448,-500.0,0.00033013,4]
[314894544,1708625469459,-500.0,0.00033013,4]
[314894545,1708625469469,-500.0,0.00033013,4]
[314894546,1708625469479,-500.0,0.00033013,4]
[314894547,1708625469489,-500.0,0.00033013,4]
[314894548,1708625469498,-500.0,0.00033013,4]
[314894549,1708625469509,-771.01,0.00033013,4]
[314894550,1708625469520,-500.0,0.00033013,4]
[314894551,1708625469530,-500.0,0.00033013,4]
[314894552,1708625469540,-670.32,0.00033013,4]
[314894553,1708625469549,-905.48,0.00033013,4]
[314894554,1708625469559,-500.0,0.00033013,4]
[314894555,1708625469569,-587.38,0.00033013,4]
[314894556,1708625469579,-500.0,0.00033013,4]
[314894557,1708625469589,-500.0,0.00033013,4]
[314894558,1708625469599,-500.0,0.00033013,4]
[314894559,1708625469609,-500.0,0.00033013,4]
[314894560,1708625469618,-500.0,0.00033013,4]
[314894561,1708625469628,-500.0,0.00033013,4]
[314894562,1708625469638,-500.0,0.00033013,4]
[314894563,1708625469647,-500.0,0.00033013,4]
[314894564,1708625469658,-296.7261219,0.00033013,4]
[314894565,1708625469667,-500.0,0.00033013,4]
[314894566,1708625469677,-500.0,0.00033013,4]
[314894567,1708625469686,-500.0,0.00033013,4]
[314894568,1708625469696,-500.0,0.00033013,4]
[314894569,1708625469705,-500.0,0.00033013,4]
[314894570,1708625469715,-500.0,0.00033013,4]
[314894571,1708625469724,-500.0,0.00033013,4]
[314894572,1708625469734,-159.745135,0.00033013,7]
[314894573,1708625469744,-500.0,0.00033013,4]
[314894574,1708625469754,-159.745135,0.00033013,7]
[314894575,1708625469763,-500.0,0.00033013,4]
[314894576,1708625469772,-1115.25,0.00033013,4]
[314894577,1708625469782,-159.745135,0.00033013,7]
[314894578,1708625469791,-159.745135,0.00033013,7]
[314894579,1708625469800,-500.0,0.00033013,4]
[314894580,1708625469810,-617.27,0.00033013,4]
[314894581,1708625469820,-1239.94,0.00033013,4]
[314894582,1708625469829,-500.0,0.00033013,4]
[314894583,1708625469839,-920.63,0.00033013,4]
[314894584,1708625469849,-527.26066638,0.00033013,4]
[314894585,1708625469861,-799.98,0.00033013,4]
[314894586,1708625469875,-500.0,0.00033013,4]
[314894587,1708625469885,-500.0,0.00033013,4]
[314894588,1708625469895,-1030.29,0.00033013,4]
[314894589,1708625469906,-500.0,0.00033013,4]
[314894590,1708625469916,-500.0,0.00033013,4]
[314894591,1708625469925,-500.0,0.00033013,4]
[314894592,1708625469935,-500.0,0.00033013,4]
[314894593,1708625469946,-502.14701317,0.00033013,4]
[314894594,1708625469955,-500.0,0.00033013,4]
[314894595,1708625469965,-209.966881,0.00033013,7]
[314894596,1708625469975,-209.966881,0.00033013,7]
[314894597,1708625469985,-500.0,0.00033013,4]
[314894598,1708625469994,-209.966881,0.00033013,7]
[314894599,1708625470003,-500.0,0.00033013,4]
[314894600,1708625470013,-209.966881,0.00033013,7]
[314894601,1708625470024,-728.76,0.00033013,4]
[314894602,1708625470034,-741.55,0.00033013,4]
[314894603,1708625470044,-617.56,0.00033013,4]
[314894604,1708625470054,-500.0,0.00033013,4]
[314894605,1708625470064,-664.22,0.00033013,4]
[314894606,1708625470073,-500.0,0.00033013,4]
[314894607,1708625470082,-582.0,0.00033013,4]
[314894608,1708625470092,-500.0,0.00033013,4]
[314894609,1708625470101,-541.78,0.00033013,4]
[314894610,1708625470111,-764.35,0.00033013,4]
[314894611,1708625470121,-500.0,0.00033013,4]
[314894612,1708625470130,-500.0,0.00033013,4]
[314894613,1708625470140,-1242.24,0.00033013,4]
[314894614,1708625470150,-872.206723,0.00033013,7]
[314894615,1708625470159,-872.206723,0.00033013,7]
[314894616,1708625470169,-151.0,0.00033013,7]
[314894617,1708625470178,-515.20981374,0.00033013,4]
[314894618,1708625470191,-1041.1,0.00033013,4]
[314894619,1708625470521,-500.0,0.00033013,4]
[314894620,1708625470582,-1494.6,0.00033013,4]
[314894621,1708625470591,-151.0,0.00033013,7]
[314894622,1708625470601,-500.0,0.00033013,4]
[314894623,1708625470610,-500.0,0.00033013,4]
[314894624,1708625470619,-872.206723,0.00033013,7]
[314894625,1708625470628,-872.206723,0.00033013,7]
[314894626,1708625470638,-500.0,0.00033013,4]
[314894627,1708625470647,-500.0,0.00033013,4]
[314894628,1708625470658,-500.0,0.00033013,4]
[314894629,1708625470667,-500.0,0.00033013,4]
[314894630,1708625470676,-514.89902964,0.00033013,4]
[314894631,1708625470686,-983.44,0.00033013,4]
[314894632,1708625470695,-273.001206,0.00033013,7]
[314894633,1708625470704,-273.001206,0.00033013,7]
[314894634,1708625470713,-500.0,0.00033013,4]
[314894635,1708625470723,-508.51880533,0.00033013,4]
[314894636,1708625470732,-871.52,0.00033013,4]
[314894637,1708625470742,-500.0,0.00033013,4]
[314894638,1708625470751,-500.0,0.00033013,4]
[314894639,1708625470760,-273.001206,0.00033013,7]
[314894640,1708625470769,-273.001206,0.00033013,7]
[314894641,1708625470778,-937.84,0.00033013,4]
[314894642,1708625470788,-500.0,0.00033013,4]
[314894643,1708625470797,-500.0,0.00033013,4]
[314894644,1708625470806,-500.0,0.00033013,4]
[314894645,1708625470816,-500.0,0.00033013,4]
[314894646,1708625470825,-940.94,0.00033013,4]
[314894647,1708625470835,-500.0,0.00033013,4]
[314894648,1708625470844,-500.0,0.00033013,4]
[314894649,1708625470853,-1267.73,0.00033013,4]
[314894650,1708625470864,-988.42,0.00033013,4]
[314894651,1708625470874,-900.68,0.00033013,4]
[314894652,1708625470884,-558.6501485,0.00033013,4]
[314894653,1708625470893,-500.0,0.00033013,4]
[314894654,1708625470904,-598.66,0.00033013,4]
[314894655,1708625470913,-1407.88,0.00033013,4]
[314894656,1708625470923,-500.0,0.00033013,4]
[314894657,1708625470932,-519.07887324,0.00033013,4]
[314894658,1708625470944,-500.0,0.00033013,4]
[314894659,1708625470954,-1015.51,0.00033013,4]
[314894660,1708625470963,-530.72890346,0.00033013,4]
[314894661,1708625470973,-500.0,0.00033013,4]
[314894662,1708625470983,-500.0,0.00033013,4]
[314894663,1708625470993,-500.0,0.00033013,4]
[314894664,1708625471003,-500.0,0.00033013,4]
[314894665,1708625471013,-500.0,0.00033013,4]
[314894666,1708625471023,-625.15,0.00033013,4]
[314894667,1708625471032,-500.0,0.00033013,4]
[314894668,1708625471041,-1044.83,0.00033013,4]
[314894669,1708625471050,-824.67,0.00033013,4]
[314894670,1708625471060,-848.25,0.00033013,4]
[314894671,1708625471069,-715.27,0.00033013,4]
[314894672,1708625471079,-500.0,0.00033013,4]
[314894673,1708625471088,-500.0,0.00033013,4]
[314894674,1708625471097,-500.0,0.00033013,4]
[314894675,1708625471107,-500.0,0.00033013,4]
[314894676,1708625471116,-540.79208554,0.00033013,4]
[314894677,1708625471126,-500.0,0.00033013,4]
[314894678,1708625471137,-1782.080711,0.00033013,7]
[314894679,1708625471146,-1782.080711,0.00033013,7]
[314894680,1708625471157,-151.0,0.00033013,7]
[314894681,1708625471165,-151.0,0.00033013,7]
[314894682,1708625471175,-500.0,0.00033013,4]
[314894683,1708625471184,-979.83,0.00033013,4]
[314894684,1708625471194,-240.853509,0.00033013,7]
[314894685,1708625471203,-240.853509,0.00033013,7]
[314894686,1708625471212,-1292.8,0.00033013,4]
[314894687,1708625471222,-610.038738,0.00033013,4]
[314894688,1708625471230,-500.0,0.00033013,4]
[314894689,1708625471241,-500.0,0.00033013,4]
[314894690,1708625471250,-240.853509,0.00033013,7]
[314894691,1708625471259,-240.853509,0.00033013,7]
[314894692,1708625471269,-531.85094739,0.00033013,4]
[314894693,1708625471278,-500.0,0.00033013,4]
[314894694,1708625471287,-579.59,0.00033013,4]
[314894695,1708625471297,-651.21,0.00033013,4]
[314894696,1708625471306,-709.91,0.00033013,4]
[314894697,1708625471315,-1259.45,0.00033013,4]
[314894698,1708625471325,-150.0,0.00033013,4]
[314894699,1708625471334,-151.0,0.00033013,7]
[314894700,1708625471343,-151.0,0.00033013,7]
[314894701,1708625471353,-500.0,0.00033013,4]
[314894702,1708625471362,-500.0,0.00033013,4]
[314894703,1708625471371,-695.7,0.00033013,4]
[314894704,1708625471380,-500.0,0.00033013,4]
[314894705,1708625471389,-500.0,0.00033013,4]
[314894706,1708625471399,-972.69,0.00033013,4]
[314894707,1708625471409,-151.0,0.00033013,7]
[314894708,1708625471419,-521.447789,0.00033013,7]
[314894709,1708625471428,-500.0,0.00033013,4]
[314894710,1708625471439,-151.0,0.00033013,7]
[314894711,1708625471448,-521.447789,0.00033013,7]
[314894712,1708625471458,-500.0,0.00033013,4]
[314894713,1708625471467,-1106.66,0.00033013,4]
[314894714,1708625471477,-540.30442934,0.00033013,4]
[314894715,1708625471486,-500.0,0.00033013,4]
[314894716,1708625471495,-1263.76,0.00033013,4]
[314894717,1708625471504,-500.0,0.00033013,4]
[314894718,1708625471514,-521.447789,0.00033013,7]
[314894719,1708625471523,-521.447789,0.00033013,7]
[314894720,1708625471533,-500.0,0.00033013,4]
[314894721,1708625471542,-530.95520748,0.00033013,4]
[314894722,1708625471551,-500.0,0.00033013,4]
[314894723,1708625471560,-1595.37,0.00033013,4]
[314894724,1708625471570,-535.25,0.00033013,4]
[314894725,1708625471578,-500.0,0.00033013,4]
[314894726,1708625471588,-500.0,0.00033013,4]
[314894727,1708625471597,-1321.09,0.00033013,4]
[314894728,1708625471607,-575.02237571,0.00033013,4]
[314894729,1708625471617,-500.0,0.00033013,4]
[314894730,1708625471627,-500.0,0.00033013,4]
[314894731,1708625471636,-841.52,0.00033013,4]
[314894732,1708625471646,-151.0,0.00033013,7]
[314894733,1708625471656,-297.64539367,0.00033013,4]
[314894734,1708625471665,-266.696,0.00033013,7]
[314894735,1708625471674,-151.0,0.00033013,7]
[314894736,1708625471683,-162.346877,0.00033013,2]
[314894737,1708625471693,-162.346877,0.00033013,2]
[314894738,1708625471702,-931.24,0.00033013,4]
[314894739,1708625471711,-194.50846983,0.00033013,4]
[314894740,1708625471720,-593.4,0.00033013,4]
[314894741,1708625471729,-505.68,0.00033013,4]
[314894742,1708625471738,-500.0,0.00033013,4]
[314894743,1708625471748,-500.0,0.00033013,4]
[314894744,1708625471758,-162.346877,0.00033013,2]
[314894745,1708625471767,-162.346877,0.00033013,2]
[314894746,1708625471776,-500.0,0.00033013,4]
[314894747,1708625471786,-1083.33,0.00033013,4]
[314894748,1708625471795,-500.0,0.00033013,4]
[314894749,1708625471804,-1312.31,0.00033013,4]
[314894750,1708625471813,-1322.97,0.00033013,4]
[314894751,1708625471822,-500.0,0.00033013,4]
[314894752,1708625471832,-6861.46,0.00033013,4]
[314894753,1708625471841,-324.75215929,0.00033013,4]
[314894754,1708625471851,-500.0,0.00033013,4]
[314894755,1708625471861,-7508.74,0.00033013,4]
[314894756,1708625471874,-500.0,0.00033013,4]
[314894757,1708625471883,-500.0,0.00033013,4]
[314894758,1708625471893,-500.0,0.00033013,4]
[314894759,1708625471903,-500.0,0.00033013,4]
[314894760,1708625471913,-500.0,0.00033013,4]
[314894761,1708625471922,-308.051986,0.00033013,7]
[314894762,1708625471931,-308.051986,0.00033013,7]
[314894763,1708625471941,-2188.57,0.00033013,4]
[314894764,1708625471951,-640.5,0.00033013,4]
[314894765,1708625471961,-500.0,0.00033013,4]
[314894766,1708625471970,-1521.19,0.00033013,4]
[314894767,1708625471979,-1556.17,0.00033013,2]
[314894768,1708625471988,-1367.32,0.00033013,4]
[314894769,1708625471997,-579.67,0.00033013,4]
[314894770,1708625472006,-500.0,0.00033013,4]
[314894771,1708625472014,-500.0,0.00033013,4]
[314894772,1708625472024,-151.0,0.00033013,7]
[314894773,1708625472034,-151.0,0.00033013,7]
[314894774,1708625472044,-542.41097148,0.00033013,4]
[314894775,1708625472054,-308.051986,0.00033013,7]
[314894776,1708625472063,-500.0,0.00033013,4]
[314894777,1708625472073,-308.051986,0.00033013,7]
[314894778,1708625472082,-500.0,0.00033013,4]
[314894779,1708625472091,-3289.02,0.00033013,4]
[314894780,1708625472101,-1435.75,0.00033013,4]
[314894781,1708625472111,-7764.94,0.00033013,4]
[314894782,1708625472120,-670.88,0.00033013,4]
[314894783,1708625472129,-500.0,0.00033013,4]
[314894784,1708625472140,-1463.74,0.00033013,4]
[314894785,1708625472150,-905.05,0.00033013,4]
[314894786,1708625472160,-500.0,0.00033013,4]
[314894787,1708625472169,-500.0,0.00033013,4]
[314894788,1708625472178,-500.0,0.00033013,4]
[314894789,1708625472187,-500.0,0.00033013,4]
[314894790,1708625472197,-151.0,0.00033013,7]
[314894791,1708625472206,-2618.09,0.00033013,4]
[314894792,1708625472215,-151.0,0.00033013,7]
[314894793,1708625472224,-1754.26,0.00033013,4]
[314894794,1708625472234,-230.005431,0.00033013,7]
[314894795,1708625472244,-571.38,0.00033013,4]
[314894796,1708625472254,-230.005431,0.00033013,7]
[314894797,1708625472263,-500.0,0.00033013,4]
[314894798,1708625472273,-230.005431,0.00033013,7]
[314894799,1708625472283,-230.005431,0.00033013,7]
[314894800,1708625472292,-1224.57,0.00033013,4]
[314894801,1708625472302,-1412.23,0.00033013,4]
[314894802,1708625472312,-1295.05,0.00033013,4]
[314894803,1708625472321,-593.03930294,0.00033013,4]
[314894804,1708625472331,-2025.9,0.00033013,4]
[314894805,1708625472340,-500.0,0.00033013,4]
[314894806,1708625472350,-151.0,0.00033013,7]
[314894807,1708625472359,-151.0,0.00033013,7]
[314894808,1708625472368,-734.04,0.00033013,4]
[314894809,1708625472377,-500.0,0.00033013,4]
[314894810,1708625472387,-16810.08,0.00033013,4]
[314894811,1708625472397,-3953.01,0.00033013,4]
[314894812,1708625472407,-1357.88,0.00033013,4]
[314894813,1708625472416,-500.0,0.00033013,4]
[314894814,1708625472426,-500.0,0.00033013,4]
[314894815,1708625472436,-523.91,0.00033013,4]
[314894816,1708625472446,-500.0,0.00033013,4]
[314894817,1708625472455,-500.0,0.00033013,4]
[314894818,1708625472466,-500.0,0.00033013,4]
[314894819,1708625472475,-156.888403,0.00033013,7]
[314894820,1708625472485,-156.888403,0.00033013,7]
[314894821,1708625472494,-1319.7,0.00033013,4]
[314894822,1708625472504,-500.0,0.00033013,4]
[314894823,1708625472513,-1306.91,0.00033013,4]
[314894824,1708625472523,-2921.05,0.00033013,4]
[314894825,1708625472533,-4012.02,0.00033013,4]
[314894826,1708625472542,-3520.12,0.00033013,4]
[314894827,1708625472551,-156.888403,0.00033013,7]
[314894828,1708625472561,-1203.69,0.00033013,4]
[314894829,1708625472571,-156.888403,0.00033013,7]
[314894830,1708625472581,-531.47380921,0.00033013,4]
[314894831,1708625472592,-7422.46,0.00033013,4]
[314894832,1708625472601,-500.0,0.00033013,4]
[314894833,1708625472611,-2325.63,0.00033013,4]
[314894834,1708625472622,-595.22,0.00033013,4]
[314894835,1708625472631,-500.0,0.00033013,4]
[314894836,1708625472641,-500.0,0.00033013,4]
[314894837,1708625472651,-500.0,0.00033013,4]
[314894838,1708625472661,-578.71,0.00033013,4]
[314894839,1708625472670,-500.0,0.00033013,4]
[314894840,1708625472680,-151.0,0.00033013,7]
[314894841,1708625472689,-163.551761,0.00033013,7]
[314894842,1708625472698,-896.84,0.00033013,4]
[314894843,1708625472708,-500.0,0.00033013,4]
[314894844,1708625472717,-802.17,0.00033013,4]
[314894845,1708625472727,-500.0,0.00033013,4]
[314894846,1708625472736,-579.72,0.00033013,4]
[314894847,1708625472745,-2641.23,0.00033013,4]
[314894848,1708625472755,-999.86,0.00033013,4]
[314894849,1708625472764,-3363.68,0.00033013,4]
[314894850,1708625472773,-2799.21,0.00033013,4]
[314894851,1708625472783,-500.0,0.00033013,4]
[314894852,1708625472792,-500.0,0.00033013,4]
[314894853,1708625472802,-500.0,0.00033013,4]
[314894854,1708625472811,-411.1309211,0.00033013,4]
[314894855,1708625472820,-522.87,0.00033013,4]
[314894856,1708625472829,-879.41,0.00033013,4]
[314894857,1708625472838,-922.6,0.00033013,4]
[314894858,1708625472847,-2871.255775,0.00033013,7]
[314894859,1708625472856,-2871.255775,0.00033013,7]
[314894860,1708625472949,-500.0,0.00033013,4]
[314894861,1708625472959,-7827.29,0.00033013,4]
[314894862,1708625472968,-1225.83,0.00033013,4]
[314894863,1708625472977,-708.41,0.00033013,4]
[314894864,1708625472986,-2871.255775,0.00033013,7]
[314894865,1708625472995,-2871.255775,0.00033013,7]
[314894866,1708625473004,-1375.3,0.00033013,4]
[314894867,1708625473013,-4523.83,0.00033013,4]
[314894868,1708625473022,-346.61,0.00033013,4]
[314894869,1708625473032,-4862.62,0.00033013,4]
[314894870,1708625473041,-508.58615743,0.00033013,4]
[314894871,1708625473050,-735.21,0.00033013,4]
[314894872,1708625473058,-876.68,0.00033013,4]
[314894873,1708625473068,-757.98,0.00033013,4]
[314894874,1708625473077,-500.0,0.00033013,4]
[314894875,1708625473086,-500.0,0.00033013,4]
[314894876,1708625473095,-3270.53,0.00033013,4]
[314894877,1708625473106,-2130.22,0.00033013,4]
[314894878,1708625473115,-3006.31,0.00033013,4]
[314894879,1708625473125,-358.319661,0.00033013,7]
[314894880,1708625473134,-358.319661,0.00033013,7]
[314894881,1708625473144,-151.0,0.00033013,7]
[314894882,1708625473153,-1542.31,0.00033013,4]
[314894883,1708625473163,-5087.25,0.00033013,4]
[314894884,1708625473173,-500.0,0.00033013,4]
[314894885,1708625473182,-869.35,0.00033013,4]
[314894886,1708625473191,-500.0,0.00033013,4]
[314894887,1708625473200,-500.0,0.00033013,4]
[314894888,1708625473210,-1701.19,0.00033013,4]
[314894889,1708625473219,-358.319661,0.00033013,7]
[314894890,1708625473229,-1144.38,0.00033013,4]
[314894891,1708625473238,-500.0,0.00033013,4]
[314894892,1708625473247,-358.319661,0.00033013,7]
[314894893,1708625473256,-500.0,0.00033013,4]
[314894894,1708625473266,-10191.48,0.00033013,4]
[314894895,1708625473274,-323.87457389,0.00033013,4]
[314894896,1708625473284,-14297.7,0.00033013,4]
[314894897,1708625473294,-870.84,0.00033013,4]
[314894898,1708625473303,-500.0,0.00033013,4]
[314894899,1708625473312,-151.0,0.00033013,7]
[314894900,1708625473321,-1739.37,0.00033013,4]
[314894901,1708625473331,-151.0,0.00033013,7]
[314894902,1708625473340,-500.0,0.00033013,4]
[314894903,1708625473350,-1219.49,0.00033013,4]
[314894904,1708625473360,-151.0,0.00033013,7]
[314894905,1708625473369,-151.0,0.00033013,7]
[314894906,1708625473379,-500.0,0.00033013,4]